Workbook

Sheet MSU
B1: Antti Nurmela | E1: 25.1.1995 Jalasjärvi
B2: SUPERPESIS | E2: Runkosarja | I2: Kärkilyönnit (KL), pesänvälit | P2: Ylempi loppusarja | W2: Alempi loppusarja | AD2: Arvo-ottelut | AH2: Mitalit
B3: Vuosi | C3: Sija | D3: Seura | E3: OTT | F3: KUN | G3: LÖI | H3: TOI | I3: KL | J3: 0 > 1 | K3: 1 > 2 | L3: 2 > 3 | M3: 3 > k | N3: KL-% | P3: OTT | Q3: KUN | R3: LÖI | S3: TOI | T3: KL | U3: KL-% | W3: OTT | X3: KUN | Y3: LÖI | Z3: TOI | AA3: KL | AB3: KL-% | AD3: IL | AE3: LL | AF3: hSM | AG3: K | AH3: H | AI3: P
B4: 2011 | C4: 6. | D4: KoU 2 | F4: suomensarja
B5: 2012 | C5: 3. | D5: KoU 2 | F5: suomensarja
B6: 2013 | C6: 8. | D6: KoU 2 | F6: suomensarja
B7: 2013 | C7: 8. | D7: KoU | E7: 1 | F7: 0 | G7: 0 | H7: 0 | I7: 2 | J7: 1 | K7: 0 | L7: 1 | M7: 0 | N7: 50.0 %
B8: 2014 | C8: 1. | D8: Jalas | F8: suomensarja
B9: 2014 | C9: 2. | D9: VäVi | F9: suomensarja
B10: 2015 | C10: 1. | D10: Jalas | F10: suomensarja
B11: 2016 | C11: 11. | D11: Jalas | F11: ykköspesis
B12: 2016 | C12: 6. | D12: KoU | E12: 2 | F12: 0 | G12: 0 | H12: 0 | I12: 1 | J12: 1 | K12: 0 | L12: 0 | M12: 0 | N12: 16.7 %
B13: ****
B14: 2021 | C14: 3. | D14: Luja | F14: suomensarja
B15: 2022 | C15: 4. | D15: Luja | F15: suomensarja
B16: 2023 | C16: 7. | D16: Luja | F16: suomensarja
B17: Yhteensä | E17: 3 | F17: 0 | G17: 0 | H17: 0 | I17: 3 | J17: 2 | K17: 0 | L17: 1 | M17: 0 | N17: 30.0 % | O17: 34.04255319 | P17: 0 | Q17: 0 | R17: 0 | S17: 0 | T17: 0 | U17: 0.0 % | W17: 0 | X17: 0 | Y17: 0 | Z17: 0 | AA17: 0 | AB17: 0.0 % | AD17: 0 | AE17: 0 | AF17: 0 | AG17: 0 | AH17: 0 | AI17: 0
B18: Pesispörssi | D18: 2.0
B20: URA SUPERISSA | E20: OTT | F20: KUN | G20: LÖI | H20: TOI | I20: KL | K20: ka/L | L20: ka/T | M20: ka/KL | N20: KL-% | P20: ENSIMMÄISET RUNKOSARJASSA
B21: Runkosarja | E21: 3 | F21: 0 | G21: 0 | H21: 0 | I21: 3 | K21: 0.00 | L21: 0.00 | M21: 1.00 | N21: 30.0 % | O21: 34.04255319 | P21: Ottelu | R21: 07.07. 2013 KoU - SoJy 0-2 (2-10, 3-5) | Z21: 1. ottelu | AB21: 18 v 5 kk 12 pv
B22: Ylempi loppusarja | P22: Lyöty
B23: Alempi loppusarja | P23: Tuotu
B24: KAIKKI | E24: 3 | F24: 0 | G24: 0 | H24: 0 | I24: 3 | K24: 0.00 | L24: 0.00 | M24: 1.00 | N24: 30.0 % | O24: 34.04255319 | P24: Kunnari
B26: Seurat | D26: Jalas = Jalasjärven Jalas (1914), kasvattajaseura
D27: KoU = Koskenkorvan Urheilijat (1945)
D28: VäVi = Vähänkyrön Viesti (1938)
D29: Luja = Laihian Luja (1996)

Sheet MYP, MSS
B1: Antti Nurmela | E1: 25.1.1995 Jalasjärvi
B2: YKKÖSPESIS | E2: Runkosarja | L2: Runkosarja TOP-10 | Q2: Jatkosarjat | X2: SUOMENSARJA | AA2: Runkosarja | AH2: Runkosarja TOP-10 | AM2: Jatkosarjat
B3: Vuosi | C3: Sija | D3: Seura | E3: OTT | F3: KUN | G3: LÖI | H3: TOI | I3: KL | J3: KL-% | L3: LÖI | M3: TOI | N3: L+T | O3: KL | Q3: OTT | R3: KUN | S3: LÖI | T3: TOI | U3: KL | V3: KL-% | X3: Vuosi | Y3: Sija | Z3: Seura | AA3: OTT | AB3: KUN | AC3: LÖI | AD3: TOI | AE3: KL | AF3: KL-% | AH3: LÖI | AI3: TOI | AJ3: L+T | AK3: KL | AM3: OTT | AN3: KUN | AO3: LÖI | AP3: TOI | AQ3: KL | AR3: KL-%
X4: 2011 | Y4: 6. | Z4: KoU 2 | AA4: 3 | AB4: 0 | AC4: 2 | AD4: 0 | AE4: 5 | AF4: 31.3 % | AG4: 16
X5: 2012 | Y5: 3. | Z5: KoU 2 | AA5: 12 | AB5: 3 | AC5: 16 | AD5: 8 | AE5: 49 | AF5: 58.3 % | AG5: 84 | AM5: 2 | AN5: 0 | AO5: 2 | AP5: 0 | AQ5: 5 | AR5: 45.5 % | AS5: 11
X6: 2013 | Y6: 8. | Z6: KoU 2 | AA6: 14 | AB6: 4 | AC6: 35 | AD6: 12 | AE6: 84 | AF6: 73.7 % | AG6: 114 | AH6: 10.
X7: 2014 | Y7: 1. | Z7: Jalas | AA7: 12 | AB7: 5 | AC7: 25 | AD7: 19 | AE7: 66 | AF7: 64.7 % | AG7: 102
Q8: 2 | R8: 1 | S8: 2 | T8: 1 | U8: 7 | X8: 2015 | Y8: 1. | Z8: Jalas | AA8: 14 | AB8: 0 | AC8: 27 | AD8: 4 | AE8: 54 | AF8: 61.4 % | AG8: 88 | AM8: 5 | AN8: 1 | AO8: 5 | AP8: 6 | AQ8: 19 | AR8: 51.4 % | AS8: 37
B9: 2016 | C9: 11. | D9: Jalas | E9: 13 | F9: 2 | G9: 17 | H9: 6 | I9: 45 | J9: 57.7 % | K9: 78 | Q9: 2 | R9: 0 | S9: 3 | T9: 0 | U9: 5
X11: 2018 | Y11: 6. | Z11: PeTo | AA11: 13 | AB11: 8 | AC11: 26 | AD11: 21 | AE11: 78 | AF11: 70.3 % | AG11: =PRODUCT(AE11/AF11) -> 111 | AH11: 7. | AJ11: 7.
X13: 2021 | Y13: 3. | Z13: Luja | AA13: 11 | AB13: 5 | AC13: 32 | AD13: 16 | AE13: 72 | AF13: 77.4 % | AG13: 93 | AH13: 4. | AJ13: 4. | AM13: 2 | AN13: 0 | AO13: 3 | AP13: 1 | AQ13: 7 | AR13: 50.0 % | AS13: 14
X14: 2022 | Y14: 4. | Z14: Luja | AA14: 15 | AB14: 5 | AC14: 33 | AD14: 14 | AE14: 82 | AF14: 65.6 % | AG14: 125 | AH14: 2. | AJ14: 2. | AK14: 4. | AM14: 2 | AN14: 0 | AO14: 1 | AP14: 3 | AQ14: 10 | AR14: 52.6 % | AS14: 19
X15: 2023 | Y15: 7. | Z15: Luja | AA15: 12 | AB15: 1 | AC15: 21 | AD15: 4 | AE15: 48 | AF15: 57.8 % | AG15: 83
B16: YHTEENSÄ | E16: =SUM(E4:E15) -> 13 | F16: =SUM(F4:F15) -> 2 | G16: =SUM(G4:G15) -> 17 | H16: =SUM(H4:H15) -> 6 | I16: =SUM(I4:I15) -> 45 | J16: 0.0 % | K16: =SUM(K4:K15) -> 78 | Q16: =SUM(Q4:Q15) -> 4 | R16: =SUM(R4:R15) -> 1 | S16: =SUM(S4:S15) -> 5 | T16: =SUM(T4:T15) -> 1 | U16: =SUM(U4:U15) -> 12 | V16: 0.0 % | W16: =SUM(W4:W15) -> 0 | X16: YHTEENSÄ | AA16: =SUM(AA4:AA15) -> 106 | AB16: =SUM(AB4:AB15) -> 31 | AC16: =SUM(AC4:AC15) -> 217 | AD16: =SUM(AD4:AD15) -> 98 | AE16: =SUM(AE4:AE15) -> 538 | AF16: =PRODUCT(AE16/AG16) -> 65.9 % | AG16: =SUM(AG4:AG15) -> 816.0004269 | AM16: =SUM(AM4:AM15) -> 11 | AN16: =SUM(AN4:AN15) -> 1 | AO16: =SUM(AO4:AO15) -> 11 | AP16: =SUM(AP4:AP15) -> 10 | AQ16: =SUM(AQ4:AQ15) -> 41 | AR16: =PRODUCT(AQ16/AS16) -> 50.6 % | AS16: =SUM(AS4:AS15) -> 81
B18: KAIKKI OTTELUT | E18: OTT | F18: KUN | G18: LÖI | H18: TOI | I18: KL | J18: KL-% | L18: ka/L | M18: ka/T | N18: ka/l+t | O18: ka/kl | R18: Seurat | T18: Jalas = Jalasjärven Jalas (1914), kasvattajaseura
B19: SUPERPESIS | E19: 3 | F19: 0 | G19: 0 | H19: 0 | I19: 3 | J19: 30.0 % | K19: =PRODUCT(I19/J19) -> 10 | L19: =PRODUCT((F19+G19)/E19) -> 0.00 | M19: =PRODUCT(H19/E19) -> 0.00 | N19: =PRODUCT((F19+G19+H19)/E19) -> 0.00 | O19: =PRODUCT(I19/E19) -> 1.00 | T19: KoU = Koskenkorvan Urheilijat (1945)
B20: YKKÖSPESIS | E20: =PRODUCT(E16+Q16) -> 17 | F20: =PRODUCT(F16+R16) -> 3 | G20: =PRODUCT(G16+S16) -> 22 | H20: =PRODUCT(H16+T16) -> 7 | I20: =PRODUCT(I16+U16) -> 57 | J20: =PRODUCT(I20/K20) -> 73.1 % | K20: =PRODUCT(K16+W16) -> 78 | L20: =PRODUCT((F20+G20)/E20) -> 1.47 | M20: =PRODUCT(H20/E20) -> 0.41 | N20: =PRODUCT((F20+G20+H20)/E20) -> 1.88 | O20: =PRODUCT(I20/E20) -> 3.35 | T20: VäVi = Vähänkyrön Viesti (1938)
B21: SUOMENSARJA | E21: =PRODUCT(AA16+AM16) -> 117 | F21: =PRODUCT(AB16+AN16) -> 32 | G21: =PRODUCT(AC16+AO16) -> 228 | H21: =PRODUCT(AD16+AP16) -> 108 | I21: =PRODUCT(AE16+AQ16) -> 579 | J21: =PRODUCT(I21/K21) -> 64.5 % | K21: =PRODUCT(AG16+AS16) -> 897.0004269 | L21: =PRODUCT((F21+G21)/E21) -> 2.22 | M21: =PRODUCT(H21/E21) -> 0.92 | N21: =PRODUCT((F21+G21+H21)/E21) -> 3.15 | O21: =PRODUCT(I21/E21) -> 4.95 | T21: Luja = Laihian Luja (1996)
B22: YHTEENSÄ | E22: =SUM(E19:E21) -> 137 | F22: =SUM(F19:F21) -> 35 | G22: 250 | H22: 115 | I22: 639 | J22: =PRODUCT(I22/K22) -> 64.9 % | K22: =SUM(K19:K21) -> 985.0004269 | L22: =PRODUCT((F22+G22)/E22) -> 2.08 | M22: =PRODUCT(H22/E22) -> 0.84 | N22: =PRODUCT((F22+G22+H22)/E22) -> 2.92 | O22: =PRODUCT(I22/E22) -> 4.66

Sheet Arvo-ottelut
B1: ITÄ - LÄNSI - KORTTI
B2: Antti Nurmela | C2: 25.1.1995 Jalasjärvi
B3: B-POJAT | C3: Itä - Länsi, tulos | D3: Joukkue | E3: Seura | G3: V | H3: T | I3: H | J3: Up. | K3: Lj. | L3: Palk. | M3: O | N3: K | O3: L | P3: T | Q3: KL | R3: 1 | S3: 2 | T3: 3 | U3: k | V3: KL-% | W3: Pelinjohtaja | X3: Yleisöä
B4: 20.07. 2012 Sotkamo | C4: 1-0 (1-1, 7-4) | D4: Länsi | E4: KoU | I4: 1 | J4: 2k | K4: 5 | M4: 1 | Q4: 2/4 | T4: 2/3 | U4: 0/1 | V4: 50.0 % | W4: Jari Viitasalo | X4: 1358
B5: 14.07. 2013 Hyvinkää | C5: 0-2 (3-4, 2-6) | D5: Länsi | E5: KoU | G5: 1 | K5: 8 | M5: 1 | O5: 2 | Q5: 2/7 | R5: 1/3 | S5: 1/2 | U5: 0/2 | V5: 28.6 % | W5: Pasi Vanhatalo | X5: 1287
B6: Yhteensä | G6: 2 | I6: =SUM(I3:I5) -> 1 | M6: =SUM(M3:M5) -> 2 | O6: 2 | Q6: 4/11 | R6: 1/3 | S6: 1/2 | T6: 2/3 | U6: 0/3 | V6: 36.4 %
